[Event "*** Titled Tuesday Blitz"]
[Site "Chess.com"]
[Date "2019.11.05"]
[Round "4"]
[White "AndrBaryshpolets"]
[Black "Bigfish1995"]
[Result "1-0"]
[WhiteElo "2773"]
[BlackElo "3012"]
[TimeControl "180+2"]
[EndTime "13:55:03 PST"]
[Termination "AndrBaryshpolets won by resignation"]

1. d4 {[%clk 0:03:01.9]} 1... d5 {[%clk 0:03:00.8]} 2. c4 {[%clk 0:03:03.4]}
2... e6 {[%clk 0:03:02.1]} 3. Nf3 {[%clk 0:03:04.7]} 3... Nf6 {[%clk 0:03:02.9]}
4. Nc3 {[%clk 0:03:06.3]} 4... a6 {[%clk 0:03:04]} 5. cxd5 {[%clk 0:03:06.9]}
5... exd5 {[%clk 0:03:05.2]} 6. Qb3 {[%clk 0:03:08.4]} 6... c6 {[%clk
0:03:04.8]} 7. Bf4 {[%clk 0:03:07.9]} 7... Bd6 {[%clk 0:03:00.8]} 8. Bxd6 {[%clk
0:03:06.7]} 8... Qxd6 {[%clk 0:03:02]} 9. e3 {[%clk 0:03:08.4]} 9... O-O {[%clk
0:03:01.6]} 10. Bd3 {[%clk 0:03:09.5]} 10... Re8 {[%clk 0:03:02.4]} 11. O-O
{[%clk 0:03:09.9]} 11... Nbd7 {[%clk 0:03:03.3]} 12. Qc2 {[%clk 0:03:09.2]}
12... Qe7 {[%clk 0:02:46.8]} 13. Nd2 {[%clk 0:03:03.2]} 13... Nf8 {[%clk
0:02:46.3]} 14. Rab1 {[%clk 0:02:48.8]} 14... Bg4 {[%clk 0:02:38.7]} 15. b4
{[%clk 0:02:43.9]} 15... Bh5 {[%clk 0:02:20.6]} 16. Rfe1 {[%clk 0:02:37.2]}
16... Bg6 {[%clk 0:02:20.4]} 17. Bxg6 {[%clk 0:02:22.3]} 17... hxg6 {[%clk
0:02:20.8]} 18. Na4 {[%clk 0:02:19.8]} 18... Ne6 {[%clk 0:02:19.1]} 19. Nc5
{[%clk 0:02:12.1]} 19... Ng4 {[%clk 0:01:55.5]} 20. Nf3 {[%clk 0:02:00.6]} 20...
Qc7 {[%clk 0:01:43.2]} 21. Nxe6 {[%clk 0:01:00.8]} 21... Rxe6 {[%clk 0:01:42.3]}
22. h3 {[%clk 0:01:02.4]} 22... Nf6 {[%clk 0:01:40.9]} 23. a4 {[%clk 0:01:04.1]}
23... b5 {[%clk 0:01:29.4]} 24. Ne5 {[%clk 0:00:58.9]} 24... Nd7 {[%clk
0:01:18.8]} 25. Nxd7 {[%clk 0:00:53.9]} 25... Qxd7 {[%clk 0:01:20.7]} 26. Ra1
{[%clk 0:00:50.8]} 26... Rae8 {[%clk 0:01:20]} 27. Rec1 {[%clk 0:00:51.8]} 27...
Qe7 {[%clk 0:01:08.9]} 28. Qc5 {[%clk 0:00:48.3]} 28... Qh4 {[%clk 0:01:00.3]}
29. axb5 {[%clk 0:00:37.7]} 29... axb5 {[%clk 0:00:53.8]} 30. Ra6 {[%clk
0:00:38.6]} 30... Rf6 {[%clk 0:00:37.1]} 31. Rc2 {[%clk 0:00:39.3]} 31... Rc8
{[%clk 0:00:22.9]} 32. Qe7 {[%clk 0:00:35.8]} 32... Qg5 {[%clk 0:00:17.7]} 33.
Qd7 {[%clk 0:00:30]} 33... Qf5 {[%clk 0:00:19]} 34. Qxf5 {[%clk 0:00:28.4]}
34... gxf5 {[%clk 0:00:20.9]} 35. g3 {[%clk 0:00:23.9]} 35... g5 {[%clk
0:00:21.8]} 36. Rc5 {[%clk 0:00:09.1]} 36... f4 {[%clk 0:00:18.6]} 37. Rxd5
{[%clk 0:00:08.5]} 37... cxd5 {[%clk 0:00:10.7]} 38. Rxf6 {[%clk 0:00:10.4]}
38... fxe3 {[%clk 0:00:11]} 39. fxe3 {[%clk 0:00:12.3]} 39... Rc1+ {[%clk
0:00:09.9]} 40. Kf2 {[%clk 0:00:13.3]} 40... Rc4 {[%clk 0:00:04.7]} 41. Rf5
{[%clk 0:00:14]} 41... Rxb4 {[%clk 0:00:06.3]} 42. Rxg5+ {[%clk 0:00:15.3]}
42... Kf8 {[%clk 0:00:07.9]} 43. Rxd5 {[%clk 0:00:17.2]} 43... Rb2+ {[%clk
0:00:09.4]} 44. Kf3 {[%clk 0:00:18.7]} 44... b4 {[%clk 0:00:11]} 45. Rb5 {[%clk
0:00:19.3]} 45... b3 {[%clk 0:00:12.5]} 46. h4 {[%clk 0:00:18.4]} 46... Kg7
{[%clk 0:00:13.3]} 47. g4 {[%clk 0:00:18]} 47... Rb1 {[%clk 0:00:13]} 48. g5
{[%clk 0:00:14.1]} 48... Kg6 {[%clk 0:00:13.7]} 49. Rb6+ {[%clk 0:00:11.9]}
49... Kg7 {[%clk 0:00:13.7]} 50. Ke4 {[%clk 0:00:11.7]} 50... b2 {[%clk
0:00:13]} 51. h5 {[%clk 0:00:05.9]} 51... Rg1 {[%clk 0:00:09.9]} 52. h6+ {[%clk
0:00:04.8]} 52... Kh7 {[%clk 0:00:10.9]} 53. Rxb2 {[%clk 0:00:06.4]} 53... Rxg5
{[%clk 0:00:12.5]} 54. Rh2 {[%clk 0:00:08]} 54... Rg6 {[%clk 0:00:08.6]} 55. Kd5
{[%clk 0:00:08.5]} 55... Re6 {[%clk 0:00:09]} 56. e4 {[%clk 0:00:09.8]} 56...
Kg8 {[%clk 0:00:10.3]} 57. e5 {[%clk 0:00:09.7]} 57... Kh7 {[%clk 0:00:11.3]}
58. Rh3 {[%clk 0:00:10.6]} 58... Ra6 {[%clk 0:00:12]} 59. Kc5 {[%clk 0:00:10.2]}
59... Re6 {[%clk 0:00:12.6]} 60. Kd5 {[%clk 0:00:10.7]} 60... Ra6 {[%clk
0:00:13.3]} 61. Ke4 {[%clk 0:00:12.4]} 61... Ra4 {[%clk 0:00:12.2]} 62. Rh4
{[%clk 0:00:13.8]} 62... Ra1 {[%clk 0:00:10.4]} 63. Kd5 {[%clk 0:00:14.5]} 63...
Ra6 {[%clk 0:00:11.2]} 64. Kc5 {[%clk 0:00:15]} 64... Re6 {[%clk 0:00:11.5]} 65.
Rh5 {[%clk 0:00:15.8]} 65... f6 {[%clk 0:00:08.8]} 66. exf6 {[%clk 0:00:08.2]}
66... Rxf6 {[%clk 0:00:09.8]} 67. d5 {[%clk 0:00:09.8]} 67... Rf1 {[%clk
0:00:09.7]} 68. d6 {[%clk 0:00:10.4]} 68... Rc1+ {[%clk 0:00:10.9]} 69. Kb6
{[%clk 0:00:11.5]} 69... Rd1 {[%clk 0:00:10.9]} 70. Kc7 {[%clk 0:00:12.8]} 70...
Rc1+ {[%clk 0:00:11.7]} 71. Kd7 {[%clk 0:00:14.3]} 71... Ra1 {[%clk 0:00:11]}
72. Ke7 {[%clk 0:00:15.1]} 72... Re1+ {[%clk 0:00:12.1]} 73. Kd7 {[%clk
0:00:16.1]} 73... Ra1 {[%clk 0:00:12.8]} 74. Ke6 {[%clk 0:00:17.7]} 74... Ra6
{[%clk 0:00:10.2]} 75. Ke7 {[%clk 0:00:18]} 75... Ra1 {[%clk 0:00:08.6]} 76. d7
{[%clk 0:00:19.2]} 76... Re1+ {[%clk 0:00:09.2]} 77. Kd8 {[%clk 0:00:20.8]}
77... Rb1 {[%clk 0:00:09.3]} 78. Rc5 {[%clk 0:00:19.5]} 78... Kxh6 {[%clk
0:00:07.7]} 79. Kc7 {[%clk 0:00:20.7]} 1-0

[Event "*** Titled Tuesday Blitz"]
[Site "Chess.com"]
[Date "2019.11.05"]
[Round "4"]
[White "DanielNaroditsky"]
[Black "Gabrielian_Artur"]
[Result "1-0"]
[WhiteElo "2980"]
[BlackElo "2829"]
[TimeControl "180+2"]
[EndTime "13:55:12 PST"]
[Termination "DanielNaroditsky won by resignation"]

1. Nf3 {[%clk 0:03:01.9]} 1... Nf6 {[%clk 0:03:00.6]} 2. g3 {[%clk 0:03:03.4]}
2... g6 {[%clk 0:03:01.7]} 3. b3 {[%clk 0:03:05]} 3... Bg7 {[%clk 0:03:02.8]} 4.
Bb2 {[%clk 0:03:06.9]} 4... O-O {[%clk 0:03:04]} 5. Bg2 {[%clk 0:03:08.4]} 5...
d6 {[%clk 0:03:05.4]} 6. d4 {[%clk 0:03:09.2]} 6... Nbd7 {[%clk 0:03:06.5]} 7.
O-O {[%clk 0:03:10.1]} 7... e5 {[%clk 0:03:07.8]} 8. dxe5 {[%clk 0:03:11.5]}
8... Ng4 {[%clk 0:03:09.1]} 9. c4 {[%clk 0:03:10.3]} 9... dxe5 {[%clk
0:03:09.1]} 10. h3 {[%clk 0:03:06.1]} 10... Nh6 {[%clk 0:03:09.6]} 11. e4 {[%clk
0:03:00.6]} 11... c6 {[%clk 0:03:07]} 12. Nc3 {[%clk 0:02:57.7]} 12... f6 {[%clk
0:03:08]} 13. b4 {[%clk 0:02:56.6]} 13... a5 {[%clk 0:03:05.8]} 14. a3 {[%clk
0:02:56.6]} 14... Nf7 {[%clk 0:03:04.4]} 15. c5 {[%clk 0:02:56.4]} 15... b6
{[%clk 0:03:02.9]} 16. b5 {[%clk 0:02:52.1]} 16... Bb7 {[%clk 0:02:59.9]} 17.
cxb6 {[%clk 0:02:47.1]} 17... Nxb6 {[%clk 0:02:56.2]} 18. bxc6 {[%clk
0:02:32.4]} 18... Qxd1 {[%clk 0:02:55.6]} 19. Rfxd1 {[%clk 0:02:27.2]} 19...
Bxc6 {[%clk 0:02:56.6]} 20. Bf1 {[%clk 0:02:20.7]} 20... Rfd8 {[%clk 0:02:51.2]}
21. Rac1 {[%clk 0:02:18.3]} 21... Rxd1 {[%clk 0:02:48.7]} 22. Rxd1 {[%clk
0:02:16.6]} 22... Bf8 {[%clk 0:02:46.6]} 23. Rc1 {[%clk 0:01:43.1]} 23... Rd8
{[%clk 0:02:39]} 24. Bb5 {[%clk 0:01:32.1]} 24... Bxb5 {[%clk 0:02:37.1]} 25.
Nxb5 {[%clk 0:01:34]} 25... Na4 {[%clk 0:02:37.3]} 26. Ba1 {[%clk 0:01:35.4]}
26... Rd3 {[%clk 0:02:31]} 27. Kg2 {[%clk 0:01:22.1]} 27... Rb3 {[%clk
0:02:25.4]} 28. Nc7 {[%clk 0:01:23.5]} 28... Bxa3 {[%clk 0:02:20.5]} 29. Rd1
{[%clk 0:01:24.8]} 29... Nc5 {[%clk 0:01:46]} 30. Nd5 {[%clk 0:01:05.3]} 30...
Kg7 {[%clk 0:01:42.7]} 31. Re1 {[%clk 0:00:52.6]} 31... Bb2 {[%clk 0:01:42.4]}
32. Nd2 {[%clk 0:00:50.9]} 32... Bxa1 {[%clk 0:01:40.1]} 33. Rxa1 {[%clk
0:00:46.3]} 33... Rd3 {[%clk 0:01:38.2]} 34. Rxa5 {[%clk 0:00:44.5]} 34... Nb7
{[%clk 0:01:12.9]} 35. Ra2 {[%clk 0:00:30.1]} 35... Nbd6 {[%clk 0:01:11.6]} 36.
h4 {[%clk 0:00:28.4]} 36... f5 {[%clk 0:01:10.7]} 37. Nb4 {[%clk 0:00:24.7]}
37... Rc3 {[%clk 0:01:02.9]} 38. Nd5 {[%clk 0:00:25.5]} 38... Rd3 {[%clk
0:01:02.2]} 39. Nb4 {[%clk 0:00:26.6]} 39... Rc3 {[%clk 0:01:03]} 40. Nd5 {[%clk
0:00:28.1]} 40... Rc8 {[%clk 0:01:03.1]} 41. exf5 {[%clk 0:00:23.1]} 41... gxf5
{[%clk 0:01:02.2]} 42. Nf3 {[%clk 0:00:24.8]} 42... Rc5 {[%clk 0:00:57.8]} 43.
Ne3 {[%clk 0:00:26.1]} 43... f4 {[%clk 0:00:55.6]} 44. gxf4 {[%clk 0:00:23.3]}
44... exf4 {[%clk 0:00:56.3]} 45. Rc2 {[%clk 0:00:20.4]} 45... Rxc2 {[%clk
0:00:29.8]} 46. Nxc2 {[%clk 0:00:22.3]} 46... Kf6 {[%clk 0:00:31]} 47. Ncd4
{[%clk 0:00:20.7]} 47... h5 {[%clk 0:00:28]} 48. Ne2 {[%clk 0:00:22.1]} 48...
Kf5 {[%clk 0:00:27.1]} 49. Nfd4+ {[%clk 0:00:23.5]} 49... Ke5 {[%clk 0:00:26]}
50. Kf3 {[%clk 0:00:24.2]} 50... Nf5 {[%clk 0:00:21.5]} 51. Nxf5 {[%clk
0:00:21.1]} 51... Kxf5 {[%clk 0:00:22.7]} 52. Nxf4 {[%clk 0:00:22.1]} 52... Ne5+
{[%clk 0:00:23]} 53. Kg3 {[%clk 0:00:23.1]} 53... Nc4 {[%clk 0:00:18.2]} 54.
Nxh5 {[%clk 0:00:21.8]} 54... Nd2 {[%clk 0:00:19.4]} 55. Ng7+ {[%clk 0:00:15.5]}
55... Kg6 {[%clk 0:00:19.4]} 56. Ne6 {[%clk 0:00:12.2]} 56... Ne4+ {[%clk
0:00:20.5]} 57. Kf3 {[%clk 0:00:13.9]} 57... Nd2+ {[%clk 0:00:20.1]} 58. Kg4
{[%clk 0:00:15]} 58... Kf6 {[%clk 0:00:18.1]} 59. Ng5 {[%clk 0:00:14.8]} 59...
Nc4 {[%clk 0:00:14.8]} 60. Ne4+ {[%clk 0:00:10.9]} 60... Ke5 {[%clk 0:00:14.5]}
61. f3 {[%clk 0:00:09]} 61... Ne3+ {[%clk 0:00:14.8]} 62. Kg5 {[%clk 0:00:10.3]}
62... Ng2 {[%clk 0:00:14.5]} 63. h5 {[%clk 0:00:10.3]} 63... Ne1 {[%clk
0:00:15.8]} 64. Nd2 {[%clk 0:00:06.7]} 64... Ke6 {[%clk 0:00:17]} 65. Kg6 {[%clk
0:00:07.4]} 65... Nd3 {[%clk 0:00:15.9]} 66. h6 {[%clk 0:00:08.8]} 66... Nf4+
{[%clk 0:00:16.8]} 67. Kg7 {[%clk 0:00:08.9]} 67... Nh5+ {[%clk 0:00:18]} 68.
Kf8 {[%clk 0:00:06.9]} 68... Nf6 {[%clk 0:00:17.2]} 69. Ne4 {[%clk 0:00:08.4]}
69... Nd5 {[%clk 0:00:07.9]} 70. h7 {[%clk 0:00:08.1]} 70... Ne7 {[%clk
0:00:08.9]} 71. h8=Q {[%clk 0:00:07.3]} 71... Ng6+ {[%clk 0:00:10.2]} 72. Kg7
{[%clk 0:00:09]} 72... Nxh8 {[%clk 0:00:12.1]} 73. Kxh8 {[%clk 0:00:10.9]} 73...
Kf5 {[%clk 0:00:13.5]} 74. Nd2 {[%clk 0:00:12.8]} 74... Kf4 {[%clk 0:00:14.9]}
75. Kg7 {[%clk 0:00:13.9]} 75... Ke3 {[%clk 0:00:16.3]} 76. Kg6 {[%clk
0:00:14.9]} 76... Kf4 {[%clk 0:00:17.6]} 77. Kf6 {[%clk 0:00:16.3]} 77... Ke3
{[%clk 0:00:19]} 78. Ke5 {[%clk 0:00:17.9]} 1-0

[Event "*** Titled Tuesday Blitz"]
[Site "Chess.com"]
[Date "2019.11.05"]
[Round "4"]
[White "kingofthenil"]
[Black "kinga2008"]
[Result "0-1"]
[WhiteElo "2543"]
[BlackElo "1952"]
[TimeControl "180+2"]
[EndTime "13:55:21 PST"]
[Termination "kinga2008 won by checkmate"]

1. e4 {[%clk 0:03:01.9]} 1... c5 {[%clk 0:02:58.7]} 2. d3 {[%clk 0:03:01.4]}
2... d6 {[%clk 0:02:57.9]} 3. g3 {[%clk 0:03:02.7]} 3... Nc6 {[%clk 0:02:53.1]}
4. Bg2 {[%clk 0:03:04.6]} 4... g6 {[%clk 0:02:53.7]} 5. f4 {[%clk 0:03:03.8]}
5... Bg7 {[%clk 0:02:54.5]} 6. Nf3 {[%clk 0:03:05.7]} 6... Nf6 {[%clk
0:02:53.5]} 7. O-O {[%clk 0:03:07.6]} 7... O-O {[%clk 0:02:54.5]} 8. Nc3 {[%clk
0:03:08.3]} 8... e6 {[%clk 0:02:50.7]} 9. h3 {[%clk 0:03:05.7]} 9... d5 {[%clk
0:02:46.5]} 10. e5 {[%clk 0:03:04]} 10... Ne8 {[%clk 0:02:35.9]} 11. g4 {[%clk
0:03:04.1]} 11... f6 {[%clk 0:02:31.6]} 12. exf6 {[%clk 0:03:02.1]} 12... Qxf6
{[%clk 0:02:27]} 13. Bd2 {[%clk 0:02:54.3]} 13... a6 {[%clk 0:02:17.7]} 14. Kh1
{[%clk 0:02:45.4]} 14... Qd8 {[%clk 0:02:17.4]} 15. Qe2 {[%clk 0:02:42.5]} 15...
b5 {[%clk 0:02:17.4]} 16. Rae1 {[%clk 0:02:41.6]} 16... Nc7 {[%clk 0:02:04.3]}
17. Qf2 {[%clk 0:02:36.7]} 17... Qd6 {[%clk 0:01:39.9]} 18. Qh4 {[%clk
0:02:31.7]} 18... Bd7 {[%clk 0:01:09.4]} 19. Qg3 {[%clk 0:02:10.7]} 19... b4
{[%clk 0:01:01.6]} 20. Nd1 {[%clk 0:02:10.3]} 20... Rae8 {[%clk 0:00:56.8]} 21.
c3 {[%clk 0:02:10.4]} 21... a5 {[%clk 0:00:55.6]} 22. Ne5 {[%clk 0:02:02.7]}
22... Nxe5 {[%clk 0:00:45.4]} 23. fxe5 {[%clk 0:02:04.6]} 23... Rxf1+ {[%clk
0:00:40.2]} 24. Bxf1 {[%clk 0:02:06.5]} 24... Qc6 {[%clk 0:00:31]} 25. Bg2
{[%clk 0:02:07.3]} 25... Qb5 {[%clk 0:00:20.1]} 26. Bg5 {[%clk 0:01:59.1]} 26...
bxc3 {[%clk 0:00:17.6]} 27. bxc3 {[%clk 0:02:01]} 27... Qa4 {[%clk 0:00:08.2]}
28. Qf2 {[%clk 0:01:52.3]} 28... c4 {[%clk 0:00:04.2]} 29. d4 {[%clk 0:01:49.1]}
29... Rf8 {[%clk 0:00:03.5]} 30. Qd2 {[%clk 0:01:49.7]} 30... Nb5 {[%clk
0:00:03.6]} 31. Bf6 {[%clk 0:01:47.6]} 31... Bxf6 {[%clk 0:00:04.3]} 32. exf6
{[%clk 0:01:49.5]} 32... Rxf6 {[%clk 0:00:05.7]} 33. Qg5 {[%clk 0:01:48.9]}
33... Rf7 {[%clk 0:00:04.3]} 34. Qd2 {[%clk 0:01:34.9]} 34... Na3 {[%clk
0:00:02.6]} 35. Ne3 {[%clk 0:01:29.8]} 35... Nb5 {[%clk 0:00:03.3]} 36. Nxd5
{[%clk 0:01:20.6]} 36... Qa3 {[%clk 0:00:03.5]} 37. Re3 {[%clk 0:01:01.1]} 37...
Kg7 {[%clk 0:00:04.7]} 38. Nb6 {[%clk 0:00:59.1]} 38... Be8 {[%clk 0:00:03.3]}
39. Nxc4 {[%clk 0:00:59.1]} 39... Qa4 {[%clk 0:00:03.6]} 40. Ne5 {[%clk
0:01:01]} 40... Rc7 {[%clk 0:00:04.1]} 41. c4 {[%clk 0:01:00.7]} 41... Nd6
{[%clk 0:00:03.8]} 42. c5 {[%clk 0:01:00.2]} 42... Nc4 {[%clk 0:00:05.3]} 43.
Nxc4 {[%clk 0:00:57.5]} 43... Qxc4 {[%clk 0:00:07.2]} 44. Re5 {[%clk 0:00:56.8]}
44... Rf7 {[%clk 0:00:03.2]} 45. Re1 {[%clk 0:00:49.2]} 45... Rd7 {[%clk
0:00:04.1]} 46. Rd1 {[%clk 0:00:46.6]} 46... Bf7 {[%clk 0:00:03.9]} 47. c6
{[%clk 0:00:46.2]} 47... Rc7 {[%clk 0:00:04.2]} 48. Qxa5 {[%clk 0:00:47.5]}
48... Qc2 {[%clk 0:00:04]} 49. Qe5+ {[%clk 0:00:48.2]} 49... Kg8 {[%clk
0:00:04.6]} 50. Rf1 {[%clk 0:00:49]} 50... Rc8 {[%clk 0:00:04.5]} 51. Qf6 {[%clk
0:00:46.7]} 51... Rf8 {[%clk 0:00:05.8]} 52. Qe7 {[%clk 0:00:45.4]} 52... Qxa2
{[%clk 0:00:05.8]} 53. c7 {[%clk 0:00:45.6]} 53... Qc4 {[%clk 0:00:06.1]} 54.
Bb7 {[%clk 0:00:44.3]} 54... Qxf1+ {[%clk 0:00:06]} 55. Kh2 {[%clk 0:00:43.9]}
55... Qf2+ {[%clk 0:00:07.1]} 56. Kh1 {[%clk 0:00:38.7]} 56... Qf1+ {[%clk
0:00:06.4]} 57. Kh2 {[%clk 0:00:39.6]} 57... Qf2+ {[%clk 0:00:07.1]} 58. Kh1
{[%clk 0:00:34.6]} 58... Qe1+ {[%clk 0:00:08.1]} 59. Kh2 {[%clk 0:00:32.6]}
59... Qd2+ {[%clk 0:00:09]} 60. Kg3 {[%clk 0:00:25]} 60... Qc3+ {[%clk
0:00:09.1]} 61. Kh4 {[%clk 0:00:24.3]} 61... Qe1+ {[%clk 0:00:08.2]} 62. Kg5
{[%clk 0:00:25]} 62... h6+ {[%clk 0:00:07.4]} 63. Kxh6 {[%clk 0:00:20.3]} 63...
Qd2+ {[%clk 0:00:08.7]} 64. Qg5 {[%clk 0:00:19.2]} 64... Qxd4 {[%clk 0:00:05.8]}
65. Qe7 {[%clk 0:00:14]} 65... Qh8+ {[%clk 0:00:04.4]} 66. Kg5 {[%clk
0:00:14.1]} 66... Qe5+ {[%clk 0:00:05.8]} 67. Kh6 {[%clk 0:00:13.7]} 67... Qf4+
{[%clk 0:00:05.8]} 68. Qg5 {[%clk 0:00:13.8]} 68... Qg3 {[%clk 0:00:06.3]} 69.
h4 {[%clk 0:00:13.6]} 69... Qc3 {[%clk 0:00:03.8]} 70. Qe7 {[%clk 0:00:14.6]}
70... Re8 {[%clk 0:00:03.7]} 71. Qd7 {[%clk 0:00:13.5]} 71... Qg7+ {[%clk
0:00:04.3]} 72. Kg5 {[%clk 0:00:13.8]} 72... Qe5+ {[%clk 0:00:05.8]} 73. Kh6
{[%clk 0:00:14.5]} 73... Qf4+ {[%clk 0:00:07.3]} 74. g5 {[%clk 0:00:14.8]} 74...
Qxh4# {[%clk 0:00:08.6]} 0-1

[Event "*** Titled Tuesday Blitz"]
[Site "Chess.com"]
[Date "2019.11.05"]
[Round "5"]
[White "1f3_2g41-0"]
[Black "ranu540"]
[Result "1-0"]
[WhiteElo "2288"]
[BlackElo "1723"]
[TimeControl "180+2"]
[EndTime "14:02:49 PST"]
[Termination "1f3_2g41-0 won by checkmate"]

1. e4 {[%clk 0:03:01.9]} 1... c5 {[%clk 0:03:00.9]} 2. Nf3 {[%clk 0:03:02]} 2...
Nc6 {[%clk 0:03:02]} 3. Bb5 {[%clk 0:03:02.7]} 3... a6 {[%clk 0:02:59.8]} 4.
Bxc6 {[%clk 0:03:03.3]} 4... bxc6 {[%clk 0:03:00.6]} 5. O-O {[%clk 0:03:04.7]}
5... d5 {[%clk 0:03:01.3]} 6. Re1 {[%clk 0:02:56.3]} 6... Nf6 {[%clk 0:03:00.1]}
7. Nc3 {[%clk 0:02:55.9]} 7... Bg4 {[%clk 0:02:57.7]} 8. exd5 {[%clk 0:02:44.6]}
8... cxd5 {[%clk 0:02:58.3]} 9. d4 {[%clk 0:02:45.5]} 9... cxd4 {[%clk
0:02:57.1]} 10. Qxd4 {[%clk 0:02:25.6]} 10... e6 {[%clk 0:02:57.1]} 11. Bg5
{[%clk 0:02:25.3]} 11... h6 {[%clk 0:02:57]} 12. Bxf6 {[%clk 0:02:25.7]} 12...
gxf6 {[%clk 0:02:57.9]} 13. Qxg4 {[%clk 0:02:25.7]} 13... Rb8 {[%clk 0:02:51.7]}
14. Rad1 {[%clk 0:02:21.9]} 14... Rxb2 {[%clk 0:02:50.5]} 15. Rxd5 {[%clk
0:02:21.3]} 15... Qc7 {[%clk 0:02:40.8]} 16. Qa4+ {[%clk 0:02:21]} 16... Ke7
{[%clk 0:02:34.9]} 17. Qa3+ {[%clk 0:02:19.6]} 17... Ke8 {[%clk 0:02:30.6]} 18.
Qxb2 {[%clk 0:02:19.3]} 18... Be7 {[%clk 0:02:27.8]} 19. Rd3 {[%clk 0:02:15.5]}
19... Kf8 {[%clk 0:02:23.2]} 20. Ne4 {[%clk 0:02:13.4]} 20... Qc6 {[%clk
0:02:21.4]} 21. Nxf6 {[%clk 0:02:10.5]} 21... Bxf6 {[%clk 0:02:20.8]} 22. Qxf6
{[%clk 0:02:08.1]} 22... Rg8 {[%clk 0:02:21.6]} 23. Rd8+ {[%clk 0:02:07.2]}
23... Qe8 {[%clk 0:02:20]} 24. Rxe8+ {[%clk 0:02:08.8]} 24... Kxe8 {[%clk
0:02:20.6]} 25. Rd1 {[%clk 0:02:10.7]} 25... Rg6 {[%clk 0:02:20.2]} 26. Rd8#
{[%clk 0:02:11.3]} 1-0

[Event "*** Titled Tuesday Blitz"]
[Site "Chess.com"]
[Date "2019.11.05"]
[Round "5"]
[White "Perecke"]
[Black "Frolik67"]
[Result "1-0"]
[WhiteElo "2150"]
[BlackElo "2527"]
[TimeControl "180+2"]
[EndTime "14:02:53 PST"]
[Termination "Perecke won by resignation"]

1. e4 {[%clk 0:03:01.9]} 1... e6 {[%clk 0:02:59.4]} 2. d4 {[%clk 0:03:02.8]}
2... d5 {[%clk 0:03:01.3]} 3. Nc3 {[%clk 0:03:03.5]} 3... Nf6 {[%clk 0:03:02.6]}
4. e5 {[%clk 0:02:56.3]} 4... Nfd7 {[%clk 0:03:03.4]} 5. Nce2 {[%clk 0:02:57.5]}
5... c5 {[%clk 0:03:04.8]} 6. c3 {[%clk 0:02:58.8]} 6... Nc6 {[%clk 0:03:06.4]}
7. f4 {[%clk 0:02:59.9]} 7... cxd4 {[%clk 0:03:07.8]} 8. cxd4 {[%clk 0:03:00.4]}
8... f6 {[%clk 0:03:09.7]} 9. Nf3 {[%clk 0:03:01.4]} 9... Bb4+ {[%clk
0:03:10.9]} 10. Bd2 {[%clk 0:03:01.9]} 10... Bxd2+ {[%clk 0:03:11.4]} 11. Qxd2
{[%clk 0:03:03.2]} 11... fxe5 {[%clk 0:03:13.3]} 12. fxe5 {[%clk 0:03:04.3]}
12... O-O {[%clk 0:03:15.2]} 13. Nc3 {[%clk 0:02:51.3]} 13... a6 {[%clk
0:03:15.8]} 14. Bd3 {[%clk 0:02:48.2]} 14... Rxf3 {[%clk 0:03:15.4]} 15. gxf3
{[%clk 0:02:49.3]} 15... Qh4+ {[%clk 0:03:16]} 16. Qf2 {[%clk 0:02:46.9]} 16...
Qxd4 {[%clk 0:03:17]} 17. Qxd4 {[%clk 0:02:45.7]} 17... Nxd4 {[%clk 0:03:18.9]}
18. f4 {[%clk 0:02:39.7]} 18... b5 {[%clk 0:03:19.9]} 19. O-O-O {[%clk
0:02:40.5]} 19... Nc6 {[%clk 0:03:18.4]} 20. Be2 {[%clk 0:02:29.2]} 20... Bb7
{[%clk 0:03:18.1]} 21. Bg4 {[%clk 0:02:29.9]} 21... Kf7 {[%clk 0:03:15.8]} 22.
Nxd5 {[%clk 0:02:30]} 22... exd5 {[%clk 0:03:16.1]} 23. Bxd7 {[%clk 0:02:31]}
23... Na5 {[%clk 0:03:12.4]} 24. b3 {[%clk 0:02:28.1]} 24... Ke7 {[%clk
0:03:13.5]} 25. Bf5 {[%clk 0:02:26.5]} 25... g6 {[%clk 0:03:14.4]} 26. Bd3
{[%clk 0:02:26.3]} 26... Rf8 {[%clk 0:03:15.1]} 27. Rhf1 {[%clk 0:02:23.3]}
27... Nc6 {[%clk 0:03:16.8]} 28. Bb1 {[%clk 0:02:18]} 28... Ke6 {[%clk
0:03:16.9]} 29. a3 {[%clk 0:02:14.4]} 29... b4 {[%clk 0:03:16.7]} 30. a4 {[%clk
0:02:14.2]} 30... a5 {[%clk 0:03:18.1]} 31. Bd3 {[%clk 0:02:11.7]} 31... Nd4
{[%clk 0:03:18.9]} 32. Kb2 {[%clk 0:02:12.1]} 32... Nf3 {[%clk 0:02:51]} 33.
Rxf3 {[%clk 0:02:04.3]} 1-0

[Event "*** Titled Tuesday Blitz"]
[Site "Chess.com"]
[Date "2019.11.05"]
[Round "5"]
[White "Last7Samurai"]
[Black "SerGo055"]
[Result "0-1"]
[WhiteElo "2691"]
[BlackElo "2535"]
[TimeControl "180+2"]
[EndTime "14:03:21 PST"]
[Termination "SerGo055 won by resignation"]

1. d4 {[%clk 0:02:58.8]} 1... Nf6 {[%clk 0:03:00.5]} 2. Bg5 {[%clk 0:02:58.6]}
2... d5 {[%clk 0:02:56.8]} 3. Nd2 {[%clk 0:02:57.3]} 3... Bf5 {[%clk 0:02:55.8]}
4. Ngf3 {[%clk 0:02:56.4]} 4... c6 {[%clk 0:02:55.6]} 5. e3 {[%clk 0:02:53.7]}
5... Nbd7 {[%clk 0:02:56.1]} 6. Nh4 {[%clk 0:02:45.6]} 6... Bg6 {[%clk 0:02:54]}
7. Nxg6 {[%clk 0:02:46]} 7... hxg6 {[%clk 0:02:52]} 8. Be2 {[%clk 0:02:38.4]}
8... e5 {[%clk 0:02:45.8]} 9. dxe5 {[%clk 0:02:39.1]} 9... Nxe5 {[%clk
0:02:46.4]} 10. Nf3 {[%clk 0:02:39.2]} 10... Bd6 {[%clk 0:02:45.2]} 11. h3
{[%clk 0:02:36]} 11... Qb6 {[%clk 0:02:39.7]} 12. Rb1 {[%clk 0:02:27.9]} 12...
Ne4 {[%clk 0:02:29.8]} 13. Bf4 {[%clk 0:01:52.9]} 13... Nxf3+ {[%clk 0:02:19.9]}
14. gxf3 {[%clk 0:01:53]} 14... Nxf2 {[%clk 0:02:18.9]} 15. Kxf2 {[%clk
0:01:52.1]} 15... Bxf4 {[%clk 0:02:19.7]} 16. Qd3 {[%clk 0:01:53.1]} 16... O-O-O
{[%clk 0:02:14.5]} 17. Rbe1 {[%clk 0:01:46.7]} 17... Rde8 {[%clk 0:02:12.4]} 18.
Bd1 {[%clk 0:01:44.7]} 18... Rh5 {[%clk 0:02:03.2]} 19. Qd4 {[%clk 0:01:34.6]}
19... Bxe3+ {[%clk 0:02:03.1]} 0-1